Cogmind - Beta 13 @@@ ROGUE MODE // 2024.06.28 @ 15:47:43 Player: Lazuli Result: Destroyed by S-27 Virus with Autogun Performance ------------- Evolutions (5) 2500 Regions Visited (11) 2200 Robots Destroyed (122) 610 Value Destroyed (5721) 5721 Prototype IDs (12) 240 Alien Tech Used (0) 0 Bonus (2572) 2572 TOTAL SCORE: 13843 Bonus ------- High Alert Combat Kills 210 Follower Combat Kills 991 Entered Garrisons 400 Used RIF Installer 1000 Friendly Fire -29 Cogmind --------- Core Integrity 0/1000 Matter 7/300 Energy 99/100 System Corruption 20% Temperature Cool (0) Movement Core (50) Location -5/Extension Parts ------- > --- POWER (2) -------- (None) > --- PROPULSION (4) --- (None) > --- UTILITY (8) ------ Hacking Suite Relay Coupler [Brawler] (17) Relay Coupler [Sentry] (14) > --- WEAPON (3) ------- (None) > --- INVENTORY (5) ---- Micro Fission Core Micro Fission Core Improved Cooling System Improved System Shield Tiamat Missile Launcher Peak State ------------ > --- POWER ------------ F-cell Engine F-cell Engine > --- PROPULSION ------- Improved Medium Treads Improved Medium Treads Improved Medium Treads Improved Medium Treads > --- UTILITY ---------- High-capacity Storage Unit Matter Compressor Advanced Visual Processing Unit Transport Network Coupler Improved Hacking Suite Relay Coupler [Behemoth] > --- WEAPON ----------- Hypervelocity Gauss Rifle Remote Datajack Heavy Flail > --- INVENTORY -------- Fission Core Light Fission Core Improved Medium Treads Improved Medium Treads Improved Medium Treads Improved Medium Treads Improved Medium Treads Improved Medium Treads Heavy Reactive Plating Improved System Shield Relay Coupler [Swarmer] Relay Coupler [Swarmer] Relay Coupler [Brawler] Relay Coupler [Sentry] Relay Coupler [Hunter] Heavy Missile Launcher Remote Datajack Remote Datajack [Rating: 73] Favorites ----------- Power F-cell Engine Engine F-cell Engine Power Core Fission Core Propulsion Improved Medium Treads Treads Improved Medium Treads Leg Improved Carbon-fiber Leg Wheel Wheel Flight Unit Field Propulsion Drive Utility Advanced Visual Processing Unit Device Cooling System Storage High-capacity Storage Unit Processor Advanced Visual Processing Unit Hackware Hacking Suite Protection Hardened Medium Armor Plating Weapon Remote Datajack Energy Gun Gatling Laser Ballistic Gun Heavy Assault Rifle Launcher Tiamat Missile Launcher Special Weapon Remote Datajack Impact Weapon Heavy Flail Piercing Weapon Lance Special Melee Weapon Datajack Build | -11 -10 -9 -8 -8 -8 -8 -6 -6 -6 -5 -5 ------- Run | Yrd Mat Mat Mat Sto Gar Rec Fac Gar Fac Fac Ext Slots Evolved 10 | . . 2 2 . . . 4 . . 2 . Power 1 | . . . . . . . 1 . . . . Propulsion 2 | . . . 1 . . . 1 . . . . Utility 6 | . . 2 1 . . . 1 . . 2 . Weapon 1 | . . . . . . . 1 . . . . Parts Attached 210 | 6 6 13 42 12 24 1 38 31 6 31 . Power 25 | 1 2 1 4 2 2 1 5 1 . 6 . Engine 13 | 1 1 1 3 . . 1 3 . . 3 . Core 12 | . 1 . 1 2 2 . 2 1 . 3 . Reactor . | . . . . . . . . . . . . Propulsion 41 | 2 1 2 9 . 3 . 7 6 1 10 . Treads 22 | . . . . . . . 6 6 1 9 . Leg 7 | . . . 3 . 3 . 1 . . . . Wheel 11 | 2 1 2 6 . . . . . . . . Hover . | . . . . . . . . . . . . Flight 1 | . . . . . . . . . . 1 . Utility 57 | 1 2 4 12 1 3 . 15 7 4 8 . Device 17 | . 1 3 5 1 1 . 6 . . . . Storage 4 | 1 1 . . . . . 1 1 . . . Processor 3 | . . 1 1 . . . 1 . . . . Hackware 22 | . . . 2 . 1 . 6 5 4 4 . Protection 11 | . . . 4 . 1 . 1 1 . 4 . Artifact . | . . . . . . . . . . . . Weapon 87 | 2 1 6 17 9 16 . 11 17 1 7 . Energy Gun 16 | . . 4 5 4 1 . 2 . . . . Energy Cannon . | . . . . . . . . . . . . Ballistic Gun 35 | 2 1 1 7 3 4 . 4 11 1 1 . Ballistic Cannon . | . . . . . . . . . . . . Launcher 17 | . . 1 2 2 5 . . 3 . 4 . Special Weapon 4 | . . . . . . . 2 1 . 1 . Impact Weapon 12 | . . . 3 . 4 . 3 2 . . . Slashing Weapon . | . . . . . . . . . . . . Piercing Weapon 1 | . . . . . . . . . . 1 . Special Melee Weapon 2 | . . . . . 2 . . . . . . Unidentified Prototypes 5 | . . 1 1 1 . . 2 . . . . Corrupted Parts 3 | . . . . . . . . . . 3 . System Corruption 14 | . . . . . . . . . . 14 . Parts Lost 56 | . 1 5 6 . 6 2 2 9 2 23 . Power 8 | . . . 1 . 2 1 1 1 . 2 . Propulsion 21 | . 1 2 3 . 2 1 . 3 1 8 . Utility 10 | . . 1 2 . . . 1 1 . 5 . Weapon 17 | . . 2 . . 2 . . 4 1 8 . Highest Loss Streak 13 | . 1 3 3 . 2 2 1 5 1 13 . To Critical Strikes 1 | . . . . . . . . 1 . . . Average Slot Usage (%) 93 | . 98 98 95 98 98 91 94 91 98 85 17 Engine 6 | . 8 10 7 . . 7 6 10 6 2 . Core 4 | . 5 . . 8 8 1 4 2 6 6 . Treads 11 | . . . . . . . 18 25 25 15 . Leg 5 | . . . 8 27 26 19 6 . . . . Wheel 5 | . 26 21 15 . . . . . . . . Device 5 | . 13 21 9 4 8 9 2 . . . . Storage 7 | . 14 11 9 9 9 9 6 8 6 4 . Processor 8 | . . 11 9 9 9 9 10 10 6 4 . Hackware 14 | . . . 8 18 18 18 16 10 25 28 17 Protection 2 | . . . 8 4 . . 1 3 . 3 . Energy Gun 4 | . . 11 10 8 6 9 4 . . . . Ballistic Gun 8 | . 28 10 6 6 2 . 6 9 11 6 . Special Weapon 3 | . . . . . . . 5 5 6 4 . Impact Weapon 1 | . . . . . 5 9 2 1 . . . Naked Turns . | . . . . . . . . . . . . Heaviest Build 112 | 12 29 36 43 43 37 36 78 112 107 107 . Greatest Support 120 | 26 26 26 54 54 54 45 120 120 120 120 3 Greatest Overweight (x) 16 | . 1 2 2 . 1 1 1 2 . 16 . Average Overweight (x) . | . . 1 . . . . . . . . . Largest Inventory Capacity 20 | 8 15 15 15 15 15 15 20 20 20 20 5 Average Capacity 16 | 7 10 15 15 15 15 15 18 20 20 19 5 Most Carried 20 | 4 10 15 15 15 15 15 20 20 20 20 5 Average Carried 15 | 2 6 10 14 14 14 15 17 17 18 16 5 Final Capacity 20 | 8 15 15 15 15 15 15 20 20 20 5 5 Final Carried 20 | 4 10 15 15 15 15 15 20 20 17 5 5 Class Distribution -------------------- 22% | Bothacker-Skirmisher 22% | Mutant 19% | Hacker-Mutant 17% | Bothacker-Mutant 13% | Bothacker-Tank 4% | Scavenger-Mutant Dominant Class ---------------- Mutant | -10/Materials Mutant | -9/Materials Mutant | -8/Materials Hacker-Mutant | -8/Storage Hacker-Mutant | -8/Garrison Hacker-Mutant | -8/Recycling Bothacker-Skirmisher | -6/Factory Bothacker-Tank | -6/Garrison Bothacker-Skirmisher | -6/Factory Bothacker-Tank | -5/Factory Mutant | -5/Extension Resources | -11 -10 -9 -8 -8 -8 -8 -6 -6 -6 -5 -5 ----------- Run | Yrd Mat Mat Mat Sto Gar Rec Fac Gar Fac Fac Ext Matter Collected 4628 | 241 478 212 710 184 296 16 834 778 204 675 . Remotely 60 | . . . . . . . 60 . . . . Salvage Created 4947 | 11 481 421 1104 306 465 145 462 572 . 980 . Parts 266 | 2 29 28 61 16 31 4 22 27 . 46 . Haulers Intercepted 6 | . 1 2 2 . . . 1 . . . . Recyclers Shooed 5 | . 1 1 . . . . 1 . . 2 . Parts Field Recycled . | . . . . . . . . . . . . Retrieved Matter . | . . . . . . . . . . . . Parts Self-Destructed . | . . . . . . . . . . . . Prevented . | . . . . . . . . . . . . Kills | -11 -10 -9 -8 -8 -8 -8 -6 -6 -6 -5 -5 ------- Run | Yrd Mat Mat Mat Sto Gar Rec Fac Gar Fac Fac Ext Combat Hostiles Destroyed 95 | . 8 6 25 6 15 1 6 12 . 16 . Melee 3 | . . . . . . . 1 2 . . . Guns 61 | . 8 3 20 6 4 1 5 6 . 8 . AOE 30 | . . 3 4 . 11 . . 4 . 8 . Classes Destroyed 16 | 1 4 4 1 2 . . 2 . . 2 . Worker 9 | . 2 1 1 . . . . . . 5 . Builder 3 | . . . . . . . . . . 3 . Tunneler 2 | 1 1 . . . . . . . . . . Hauler 6 | . 1 2 2 . . . 1 . . . . Recycler 3 | . . 1 . . . . . . . 2 . Operator 1 | . . 1 . . . . . . . . . Watcher 3 | . 1 1 1 . . . . . . . . Swarmer 19 | . . 3 7 . 9 . . . . . . Grunt 36 | . 8 . 10 1 3 . 1 7 . 6 . Brawler 1 | . . . . 1 . . . . . . . Duelist 2 | . . . 1 1 . . . . . . . Protector 1 | . . . . . . . . . . 1 . Sentry 18 | . . 3 7 2 3 1 2 . . . . Specialist 4 | . . . . . . . 2 . . 2 . Hunter 9 | . . . . 1 . . . 4 . 4 . Programmer 5 | . . . . . . . 1 1 . 3 . Best Kill Streak 14 | 1 4 5 4 4 9 1 2 2 . 14 . Combat Bots Only 9 | . 4 3 4 4 9 1 2 2 . 8 . Max Kills in Single Turn 8 | 1 1 3 4 1 8 1 1 2 . 4 . Gunslinging . | . . . . . . . . . . . . Exploded 8 | . . 2 4 . 8 . . 2 . 3 . Melee 1 | . . . . . . . 1 1 . . . Uniques/NPCs Destroyed . | . . . . . . . . . . . . Combat | -11 -10 -9 -8 -8 -8 -8 -6 -6 -6 -5 -5 -------- Run | Yrd Mat Mat Mat Sto Gar Rec Fac Gar Fac Fac Ext Hostile Shots Fired 759 | . 39 26 110 40 36 6 79 205 20 187 11 Missed 216 | . 7 11 32 9 10 1 21 59 7 56 3 Damage Taken 10278 | . 409 336 1307 516 570 73 713 2484 331 3408 131 Core 1852 | . 131 34 202 47 138 15 66 190 24 874 131 Absorbed by Shields . | . . . . . . . . . . . . Ignored by Resistances 256 | . . . . . . . . 256 . . . Regen/Repaired (Parts) 171 | . . . 34 . . . 137 . . . . Core Remaining (%) 66 | 100 47 91 . . . 26 . . 67 . . Volleys Fired 430 | 5 46 27 70 19 19 4 37 97 18 88 . Largest 2 | 2 2 2 2 2 2 1 2 2 2 2 . Hottest 112 | 40 40 112 112 105 105 80 110 51 51 51 . Shots Fired 637 | 10 92 50 134 30 28 4 57 115 22 95 . Gun 530 | 10 92 46 128 26 18 4 43 88 8 67 . Cannon . | . . . . . . . . . . . . Launcher 49 | . . 4 6 4 10 . . 10 . 15 . Special 58 | . . . . . . . 14 17 14 13 . Kinetic 378 | 10 92 18 44 11 9 . 31 88 8 67 . Thermal 152 | . . 28 84 15 9 4 12 . . . . Explosive 30 | . . 4 1 . . . . 10 . 15 . Electromagnetic 19 | . . . 5 4 10 . . . . . . Robot Hit Streak 22 | 3 12 13 22 7 8 6 12 9 4 16 . Robot Miss Streak 4 | 1 3 1 3 3 2 3 4 4 2 3 . Penetration Max 1 | . . . . . . . 1 . . . . Secondary Targets 2 | . . . . 1 1 . . . . . . Max Gunslinging Chain 1 | . . . . 1 1 . . . . . . Shots Hit Robots 460 | 7 63 37 107 23 20 4 47 65 15 72 . Core Hits 249 | 2 30 19 52 16 22 2 20 32 2 52 . Critical Kills 3 | . . . . . . . . 2 . 1 . Critical Parts Destroyed 10 | . . . . . . . 4 3 . 3 . Critical Strikes 19 | . . 2 4 . . . 4 5 . 4 . Burn 6 | . . 2 4 . . . . . . . . Destroy 11 | . . . . . . . 3 4 . 4 . Smash 2 | . . . . . . . 1 1 . . . Melee Attacks 55 | . . . 9 . 18 3 11 12 . 2 . Impact 51 | . . . 9 . 16 3 11 12 . . . Slashing . | . . . . . . . . . . . . Piercing 2 | . . . . . . . . . . 2 . Sneak Attacks 2 | . . . . . . . 1 1 . . . Combat Hostiles 2 | . . . . . . . 1 1 . . . Follow-up Attacks . | . . . . . . . . . . . . Damage Inflicted 10712 | 64 578 693 2029 603 662 183 836 1456 66 3542 . Guns 5957 | 64 578 451 1750 378 300 52 748 547 66 1023 . Cannons . | . . . . . . . . . . . . Explosions 4279 | . . 242 279 225 362 . . 717 . 2454 . Melee 476 | . . . . . . 131 88 192 . 65 . Ramming . | . . . . . . . . . . . . Kinetic 3611 | 64 578 127 534 91 104 . 477 547 66 1023 . Thermal 2382 | . . 324 1216 287 232 52 271 . . . . Explosive 3487 | . . 242 117 . . . . 717 . 2411 . Electromagnetic 756 | . . . 162 225 326 . . . . 43 . Impact 411 | . . . . . . 131 88 192 . . . Slashing . | . . . . . . . . . . . . Piercing 65 | . . . . . . . . . . 65 . Highest Corruption 20 | . . . . . 1 1 1 2 2 20 20 Average Corruption 4 | . . . . . 1 1 1 1 2 10 20 Corruption Purged 1 | . . . . . . . 1 . . . . Corruption Blocked . | . . . . . . . . . . . . Effects 74 | . . . . . . 5 1 11 12 42 3 Message Errors 16 | . . . . . . . . . 4 11 1 Matter Fused 12 | . . . . . . 1 1 1 2 7 . Heat Flow Errors 9 | . . . . . . 1 . 1 1 6 . Energy Discharges 7 | . . . . . . 1 . 2 . 4 . Parts Rejected 1 | . . . . . . . . . . 1 . Parts Fused 3 | . . . . . . . . 1 . 2 . Data Loss (minor) 8 | . . . . . . 1 . 2 4 . 1 Data Loss (major) 3 | . . . . . . . . 1 1 1 . Misfires 3 | . . . . . . . . . . 3 . Alerts 4 | . . . . . . 1 . . . 3 . Misdirections 4 | . . . . . . . . . . 3 1 Weapon Failures 4 | . . . . . . . . 3 . 1 . Overload Shots . | . . . . . . . . . . . . Overflow Damage 524 | . . 4 . . 19 101 88 138 . 174 . Projectiles . | . . . . . . . . . . . . Explosions 164 | . . 4 . . 19 . . . . 141 . Melee 360 | . . . . . . 101 88 138 . 33 . Knockbacks . | . . . . . . . . . . . . Impact . | . . . . . . . . . . . . Kinetic . | . . . . . . . . . . . . Secondary . | . . . . . . . . . . . . Self-Inflicted Damage 607 | . . 69 40 56 199 . . 53 . 190 . Shots 24 | . . 3 1 4 9 . . 2 . 5 . Rammed 1 | . . . . . . . . . . 1 . Targets Rammed 1 | . . . . . . . . . . 1 . Kicked . | . . . . . . . . . . . . Crushed . | . . . . . . . . . . . . Highest Temperature 339 | . 36 51 195 281 16 191 153 339 141 233 . Average Temperature 65 | . 9 11 59 139 8 100 55 96 73 45 . Received Heat Transfer 1977 | . 252 63 468 153 216 18 147 423 48 189 . Effects 1 | . . . . 1 . . . . . . . Interference 1 | . . . . 1 . . . . . . . Siege Activations . | . . . . . . . . . . . . Robots Corrupted 1 | . . . 1 . . . . . . . . Combat Hostiles 1 | . . . 1 . . . . . . . . Parts Fried 5 | . . . 2 1 1 1 . . . . . Impact Corruptions 5 | . . . . . . 2 1 2 . . . Robots Melted . | . . . . . . . . . . . . Combat Hostiles . | . . . . . . . . . . . . Parts Melted 7 | . . . 5 . . 1 1 . . . . Heat Transferred 5780 | . . 888 2942 650 550 125 625 . . . . Parts Sabotaged 4 | . . . . . . . . 4 . . . Parts Stolen . | . . . . . . . . . . . . Parts Stripped . | . . . . . . . . . . . . Power Chain Reactions 6 | . . . . 1 5 . . . . . . Alert | -11 -10 -9 -8 -8 -8 -8 -6 -6 -6 -5 -5 ------- Run | Yrd Mat Mat Mat Sto Gar Rec Fac Gar Fac Fac Ext Peak Influence 823 | 5 239 193 412 344 823 378 185 633 404 582 242 Initial 370 | . 3 62 81 136 223 370 52 118 331 138 210 Average 231 | 1 108 110 215 240 558 112 84 350 276 305 136 Maximum Alert Level 3 | . 1 . 2 1 3 1 . 2 2 2 1 Low Security (%) 50 | 100 96 100 49 43 . 69 100 10 . 18 65 Level 1 35 | . 3 . 47 56 23 30 . 59 97 58 34 Level 2 11 | . . . 2 . 49 . . 30 2 22 . Level 3 2 | . . . . . 26 . . . . . . Level 4 . | . . . . . . . . . . . . Level 5 . | . . . . . . . . . . . . High Security . | . . . . . . . . . . . . Max Security . | . . . . . . . . . . . . Squads Dispatched 31 | . 1 . 4 3 . . 10 . 3 10 . Investigation 5 | . 1 . 2 . . . 1 . 1 . . Extermination 8 | . . . . . . . 5 . . 3 . Reinforcement 15 | . . . 2 1 . . 4 . 2 6 . Assault 1 | . . . . . . . . . . 1 . Garrison 2 | . . . . 2 . . . . . . . Intercept . | . . . . . . . . . . . . Searches Triggered . | . . . . . . . . . . . . Construction Impeded 1 | . . . . . . . . . . 1 . Haulers Reinforced 1 | . . . . . . . 1 . . . . Active Scanning Responses . | . . . . . . . . . . . . Cargo Convoy Interrupts 1 | . . . . . . . . . . 1 . Stealth | -11 -10 -9 -8 -8 -8 -8 -6 -6 -6 -5 -5 --------- Run | Yrd Mat Mat Mat Sto Gar Rec Fac Gar Fac Fac Ext Distress Signals 10 | . 3 . 1 2 . . . . . 4 . Communications Jammed . | . . . . . . . . . . . . Distress Signals . | . . . . . . . . . . . . Times Spotted 221 | . 21 13 44 8 18 1 26 30 13 41 6 Peak Tracking Total 9 | . 5 3 8 5 9 1 4 4 3 7 6 Tactical Retreats 13 | . 3 . 7 . . . 1 1 . 1 . Traps | -11 -10 -9 -8 -8 -8 -8 -6 -6 -6 -5 -5 ------- Run | Yrd Mat Mat Mat Sto Gar Rec Fac Gar Fac Fac Ext Traps Triggered 14 | . 1 2 . 5 3 . . . . 3 . Indirectly 4 | . . . . 4 . . . . . . . Trap Hack Attempts . | . . . . . . . . . . . . Triggered . | . . . . . . . . . . . . Disarmed . | . . . . . . . . . . . . Reprogrammed 3 | . . . 3 . . . . . . . . Reused 1 | . . . 1 . . . . . . . . Traps Extracted . | . . . . . . . . . . . . Installed . | . . . . . . . . . . . . Triggered 3 | . . . 1 1 . . . . . 1 . Machines | -11 -10 -9 -8 -8 -8 -8 -6 -6 -6 -5 -5 ---------- Run | Yrd Mat Mat Mat Sto Gar Rec Fac Gar Fac Fac Ext Machines Disabled 17 | . . 1 1 . 6 . 1 4 . 4 . Max in Single Turn 2 | . . 1 1 . 1 . 1 1 . 2 . Garrison Relay 7 | . . . . . 3 . . 4 . . . Machines Repaired . | . . . . . . . . . . . . Machines Dismantled . | . . . . . . . . . . . . Machines Sabotaged . | . . . . . . . . . . . . Overloaded Fab Kills . | . . . . . . . . . . . . Hacking | -11 -10 -9 -8 -8 -8 -8 -6 -6 -6 -5 -5 --------- Run | Yrd Mat Mat Mat Sto Gar Rec Fac Gar Fac Fac Ext Machines Accessed 62 | . 6 3 11 3 3 3 14 3 4 8 4 Terminals 45 | . 3 3 8 2 3 3 8 3 3 6 3 Fabricators 2 | . . . . . . . 1 . 1 . . Repair Stations 6 | . 1 . 1 . . . 2 . . 2 . Recycling Units 5 | . 2 . 1 . . . 1 . . . 1 Scanalyzers 2 | . . . 1 . . . 1 . . . . Garrison Access 2 | . . . . 1 . . 1 . . . . Total Hacks 195 | . 11 15 40 4 11 21 51 3 10 15 14 Successful 105 | . 5 7 27 3 4 9 29 3 2 8 8 Failed 90 | . 6 8 13 1 7 12 22 . 8 7 6 Catastrophic 16 | . 1 2 . . 1 . 5 . 3 2 2 Database Lockouts . | . . . . . . . . . . . . Manual 71 | . 3 10 15 . 7 3 19 . . 6 8 Terminals 158 | . 7 15 27 3 11 21 41 3 7 11 12 Fabricators 5 | . . . . . . . 2 . 3 . . Repair Stations 13 | . 1 . 5 . . . 3 . . 4 . Recycling Units 9 | . 3 . 2 . . . 2 . . . 2 Scanalyzers 8 | . . . 6 . . . 2 . . . . Garrison Access 2 | . . . . 1 . . 1 . . . . Terminal Hacks 60 | . 4 4 10 2 2 8 17 3 1 6 3 Record 11 | . . 1 1 . . . 5 . . 4 . Prototype ID Bank 3 | . 1 . . . . 1 1 . . . . Open Door 3 | . . . . 1 . . . 1 . 1 . Level Access Points 2 | . . . . . . 1 1 . . . . Branch Access Points 3 | . . . . 1 . 1 . . . . 1 Emergency Access Points 1 | . . . . . 1 . . . . . . Machine Index 1 | . . . . . . . 1 . . . . Terminal Index 4 | . 1 1 1 . . . 1 . . . . Fabricator Index 1 | . . . . . . . 1 . . . . Scanalyzer Index 1 | . . . . . . . 1 . . . . Alert Level 6 | . . 1 1 . . 2 2 . . . . Unreport Threat 7 | . . . 2 . . 3 . . 1 . 1 Locate Traps 5 | . . . 3 . . . 1 . . 1 . Reprogram Traps 1 | . . . 1 . . . . . . . . Dispatch Records 1 | . 1 . . . . . . . . . . Hauler Manifests 2 | . 1 . . . . . 1 . . . . Registered Components 4 | . . 1 1 . . . 1 . . . 1 Zone Layout 1 | . . . . . . . 1 . . . . Garrison Registry 2 | . . . . . 1 . . 1 . . . Security Stations 1 | . . . . . . . . 1 . . . Fabricator Hacks 1 | . . . . . . . . . 1 . . Load Schematic 1 | . . . . . . . . . 1 . . Repair Station Hacks 7 | . . . 5 . . . 2 . . . . Scan Component 3 | . . . 2 . . . 1 . . . . Repair 3 | . . . 2 . . . 1 . . . . Refit 1 | . . . 1 . . . . . . . . Recycling Unit Hacks 3 | . . . 2 . . . . . . . 1 Report Inventory 1 | . . . 1 . . . . . . . . Retrieve Matter 2 | . . . 1 . . . . . . . 1 Scanalyzer 8 | . . . 6 . . . 2 . . . . Insert Component 4 | . . . 3 . . . 1 . . . . Analyze 4 | . . . 3 . . . 1 . . . . Garrison Access Hacks 2 | . . . . 1 . . 1 . . . . Unlock Access 2 | . . . . 1 . . 1 . . . . Unauthorized Hacks 24 | . 1 3 4 . 2 1 7 . . 2 4 Terminals 21 | . . 3 4 . 2 1 7 . . 1 3 Track 1 | . . . . . . . 1 . . . . Assimilate 5 | . . 1 2 . . . 2 . . . . Botnet 15 | . . 2 2 . 2 1 4 . . 1 3 Fabricators . | . . . . . . . . . . . . Repair Stations 2 | . 1 . . . . . . . . 1 . Mechanics 2 | . 1 . . . . . . . . 1 . Recycling Units 1 | . . . . . . . . . . . 1 Monitor 1 | . . . . . . . . . . . 1 Scanalyzers . | . . . . . . . . . . . . Garrison Access . | . . . . . . . . . . . . Data Cores Recovered . | . . . . . . . . . . . . Used . | . . . . . . . . . . . . Hacking Detections 54 | . 5 3 10 1 3 3 14 1 4 7 3 Full Trace Events 6 | . . 1 2 . . 1 1 . 1 . . Feedback Events . | . . . . . . . . . . . . Feedback Blocked . | . . . . . . . . . . . . Robot Schematics Acquired . | . . . . . . . . . . . . Robots Built . | . . . . . . . . . . . . Authchips . | . . . . . . . . . . . . Time . | . . . . . . . . . . . . Total Robot Build Rating . | . . . . . . . . . . . . Part Schematics Acquired 3 | . . . 2 . . . 1 . . . . Parts Built . | . . . . . . . . . . . . Authchips . | . . . . . . . . . . . . Time . | . . . . . . . . . . . . Total Part Build Rating . | . . . . . . . . . . . . Parts Repaired 3 | . . . 2 . . . 1 . . . . Time 77 | . . . 52 . . . 25 . . . . Parts Recycled . | . . . . . . . . . . . . Recycled Matter . | . . . . . . . . . . . . Retrieved Matter . | . . . . . . . . . . . . Retrieved Components . | . . . . . . . . . . . . Parts Scanalyzed 4 | . . . 3 . . . 1 . . . . Part Schematics Acquired 3 | . . . 2 . . . 1 . . . . Parts Damaged 1 | . . . 1 . . . . . . . . Bothacking | -11 -10 -9 -8 -8 -8 -8 -6 -6 -6 -5 -5 ------------ Run | Yrd Mat Mat Mat Sto Gar Rec Fac Gar Fac Fac Ext Used RIF Installer 2 | . . . . . 1 . . 1 . . . Watcher Feeds 1 | . . . . . . . . 1 . . . Robots Hacked 36 | . . . . . 2 . 9 10 7 8 . Non-combat 4 | . . . . . . . . . 1 3 . Combat 32 | . . . . . 2 . 9 10 6 5 . Robot Hacks Applied 36 | . . . . . 2 . 9 10 7 8 . parse_system 1 | . . . . . . . . . . 1 . drop_inventory 3 | . . . . . . . . . . 3 . amplify_resonance 2 | . . . . . . . 1 1 . . . reboot_system 3 | . . . . . . . 1 1 1 . . go_dormant 1 | . . . . . . . . 1 . . . overwrite_iff 7 | . . . . . 1 . 1 1 3 1 . formatsys_low 1 | . . . . . . . . . 1 . . formatsys_high 18 | . . . . . 1 . 6 6 2 3 . Relay Couplers Released 28 | . . . . . 10 . . 18 . . . Machine Destruction 28 | . . . . . 10 . . 18 . . . Attached 18 | . . . . . 1 . 5 5 4 3 . Fabnet Peak Effective % . | . . . . . . . . . . . . Robots Rewired . | . . . . . . . . . . . . Allies Hacked 2 | . . . . . . . . . . 2 . Hacks Repelled . | . . . . . . . . . . . . Allies | -11 -10 -9 -8 -8 -8 -8 -6 -6 -6 -5 -5 -------- Run | Yrd Mat Mat Mat Sto Gar Rec Fac Gar Fac Fac Ext Total Allies 29 | . . . 1 . 2 . 7 9 6 4 . Largest Group 7 | . . . 1 . 2 . 4 5 5 7 . Highest-Rated Group 260 | . . . 10 . 30 . 177 193 162 260 . Highest-Rated Ally 90 | . . . 10 . 15 . 90 90 51 51 . Total Orders 20 | . . . . . . . 10 6 . 4 . STAY 11 | . . . . . . . 5 4 . 2 . FOLLOW 9 | . . . . . . . 5 2 . 2 . Ally Attacks 180 | . . . . . 5 . 41 36 55 43 . Total Damage 4562 | . . . . . 102 . 1041 736 879 1804 . Kills 31 | . . . . . 1 . 8 2 10 10 . Allies Corrupted 1 | . . . . . . . . . . 1 . Allies Melted 1 | . . . . . . . . . . 1 . Intel | -11 -10 -9 -8 -8 -8 -8 -6 -6 -6 -5 -5 ------- Run | Yrd Mat Mat Mat Sto Gar Rec Fac Gar Fac Fac Ext Robot Analysis Total . | . . . . . . . . . . . . Derelict Logs Recovered . | . . . . . . . . . . . . Drone Launches . | . . . . . . . . . . . . Drone Recoveries . | . . . . . . . . . . . . Exploration | -11 -10 -9 -8 -8 -8 -8 -6 -6 -6 -5 -5 ------------- Run | Yrd Mat Mat Mat Sto Gar Rec Fac Gar Fac Fac Ext Turns Passed 9606 | 56 650 775 1413 158 730 398 1907 1424 750 1282 63 Spaces Moved 5378 | 35 463 525 843 70 451 221 880 690 434 645 121 Core 253 | 1 . . . . . . . . . 131 121 Treads 2455 | . . . . . . . 830 690 434 501 . Legs 1089 | . . . 297 70 451 221 50 . . . . Wheels 1568 | 34 463 525 546 . . . . . . . . Hover . | . . . . . . . . . . . . Flight 13 | . . . . . . . . . . 13 . Fastest Speed 45 | 50 90 95 95 120 110 105 160 160 160 45 50 Average Speed 137 | 87 95 102 107 120 118 168 180 161 160 155 50 Slowest Speed 850 | 90 115 130 260 120 190 185 240 320 160 850 50 Overloaded Moves . | . . . . . . . . . . . . Propulsion Burnouts . | . . . . . . . . . . . . Robots Hopped . | . . . . . . . . . . . . Cave-ins Triggered 1 | . . . . . . . . 1 . . . Exploration Rate (%) 38 | 3 64 38 75 15 63 53 24 59 14 27 23 Regions Visited 11 Branch Regions 3 Pre-discovered Areas . | . . . . . . . . . . . . Known Exits Taken 4 | . . . . 1 . 1 1 . 1 . . Unknown Exits Taken 5 | 1 1 1 1 . . . . . . 1 . Scrap Searched . | . . . . . . . . . . . . Spaces Dug 58 | . . . 9 . 1 2 10 36 . . . Terrain Destroyed 305 | . . 33 14 3 16 2 11 81 . 145 . Melee 22 | . . . 9 . 1 2 10 . . . . Projectile 8 | . . . . . . . 1 . . 7 . AOE 275 | . . 33 5 3 15 . . 81 . 138 . Terrain Rammed . | . . . . . . . . . . . . Walls Destroyed . | . . . . . . . . . . . . Machines Disabled . | . . . . . . . . . . . . Actions | -11 -10 -9 -8 -8 -8 -8 -6 -6 -6 -5 -5 --------- Run | Yrd Mat Mat Mat Sto Gar Rec Fac Gar Fac Fac Ext Total 6915 | 49 593 715 1205 111 586 236 1126 869 475 827 123 Wait 586 | . 62 126 187 3 15 8 119 10 15 41 . Move 5365 | 34 462 524 842 69 449 220 879 688 433 644 121 Hop . | . . . . . . . . . . . . Pick Up 117 | 4 9 17 24 2 12 . 17 19 2 11 . Fast Attach 67 | 6 4 1 9 6 1 1 18 5 . 16 . Attach 67 | . . 8 12 2 7 . 4 16 5 13 . Detach 20 | . . 2 4 . . . 4 7 . 3 . Swap 76 | . 2 4 21 4 16 . 16 10 1 2 . Drop 85 | . 7 6 27 6 6 . 21 5 1 6 . Fire 430 | 5 46 27 70 19 19 4 37 97 18 88 . Melee 55 | . . . 9 . 18 3 11 12 . 2 . Ram 1 | . . . . . . . . . . 1 . Kick . | . . . . . . . . . . . . Crush . | . . . . . . . . . . . . Escape Stasis 7 | . . . . . 7 . . . . . . Rewire 39 | . 1 . . . 36 . . . . . 2 Trap . | . . . . . . . . . . . . Miscellaneous . | . . . . . . . . . . . . Route ------- -11/Scrapyard -10/Materials (discovered 2 exits: *Mat / [*Min]) -9/Materials -8/Materials (discovered 3 exits: [*Fac x2] / *Sto) -8/Storage (discovered 2 exits: Rec / Gar) -8/Garrison (discovered 3 exits: *Rec x3) -8/Recycling -6/Factory (discovered 6 exits: *Fac x4 / [*Low] / Gar) -6/Garrison (discovered 3 exits: *Fac x3) -6/Factory -5/Factory -5/Extension (discovered 1 exit: Cet) History --------- Turn | Location | Event 22 | -11/Scrapyard | Discovered new exit (range 16) 57 | -11/Scrapyard | Entered Materials 312 | -10/Materials | Build established: Mutant 501 | -10/Materials | Discovered new exit (range 16) 582 | -10/Materials | Core integrity fell below 50% 675 | -10/Materials | Discovered new exit (range 16) 707 | -10/Materials | Entered another Materials area 707 | -9/Materials | Evolved 2 slots: Utility x2 1146 | -9/Materials | Discovered new exit (range 18) 1260 | -9/Materials | Lost 3 parts (2n1u) 1482 | -9/Materials | Entered another Materials area 1482 | -8/Materials | Evolved 2 slots: Propulsion x1, Utility x1 1562 | -8/Materials | Build established: Scavenger-Mutant 1639 | -8/Materials | Discovered new exit (range 8) 1845 | -8/Materials | Discovered new exit (range 19) 2059 | -8/Materials | Build established: Mutant 2086 | -8/Materials | Lost 3 parts (2n1u) 2105 | -8/Materials | Repaired Wheel 2133 | -8/Materials | Repaired Wheel 2489 | -8/Materials | Discovered new exit (range 2) 2697 | -8/Materials | Build established: Hacker-Mutant 2895 | -8/Materials | Entered Storage 2897 | -8/Storage | Identified exit to Recycling 2905 | -8/Storage | Found Prototype Launcher 2905 | -8/Storage | Identified Gui. Missile Launcher 2942 | -8/Storage | Garrison activated, responded to threat 3027 | -8/Storage | Identified exit to Garrison 3053 | -8/Storage | Entered Garrison 3071 | -8/Garrison | Installed Relay Interface Framework 3128 | -8/Garrison | Triggered checkpoint 3146 | -8/Garrison | Garrison Relay disabled 3224 | -8/Garrison | Core integrity fell below 50% 3247 | -8/Garrison | Destroyed 9 combat bots 3251 | -8/Garrison | Triggered checkpoint 3309 | -8/Garrison | Triggered checkpoint 3449 | -8/Garrison | Discovered exit to Recycling (range 11) 3459 | -8/Garrison | Triggered checkpoint 3484 | -8/Garrison | Garrison Relay disabled 3581 | -8/Garrison | Triggered checkpoint 3631 | -8/Garrison | Triggered checkpoint 3685 | -8/Garrison | Triggered checkpoint 3699 | -8/Garrison | Garrison Relay disabled 3737 | -8/Garrison | Discovered exit to Recycling (range 34) 3737 | -8/Garrison | Discovered exit to Recycling (range 64) 3737 | -8/Garrison | Discovered exit to Recycling (range 32) 3783 | -8/Garrison | Entered Recycling 3882 | -8/Recycling | Identified exit to Factory 4181 | -8/Recycling | Entered Factory 4181 | -6/Factory | Evolved 4 slots: Power x1, Propulsion x1, Utility x1, Weapon x1 4543 | -6/Factory | Build established: Bothacker-Mutant 4982 | -6/Factory | Discovered new exit (range 16) 5015 | -6/Factory | Found Hvy. Reactive Plating 5310 | -6/Factory | Identified exit to Factory 5357 | -6/Factory | Build established: Bothacker-Skirmisher 6008 | -6/Factory | Repaired Imp. Medium Treads 6086 | -6/Factory | Identified exit to Garrison 6088 | -6/Factory | Entered Garrison 6088 | -6/Garrison | Accompanied by 4 allies 6130 | -6/Garrison | Triggered checkpoint 6171 | -6/Garrison | Garrison Relay disabled 6200 | -6/Garrison | Triggered checkpoint 6234 | -6/Garrison | Discovered new exit (range 84) 6234 | -6/Garrison | Discovered new exit (range 88) 6234 | -6/Garrison | Discovered new exit (range 35) 6314 | -6/Garrison | Spotted B-75 Beast 6316 | -6/Garrison | Triggered checkpoint 6318 | -6/Garrison | Triggered checkpoint 6348 | -6/Garrison | Allies destroyed B-75 Beast 6396 | -6/Garrison | Triggered checkpoint 6416 | -6/Garrison | Lost 6 allies 6427 | -6/Garrison | Build established: Bothacker-Mutant 6484 | -6/Garrison | Expanded RIF knowledge: Watcher Feeds 6620 | -6/Garrison | Triggered checkpoint 6680 | -6/Garrison | Lost 3 allies 6693 | -6/Garrison | Lost 3 parts (1u2w) 6714 | -6/Garrison | Garrison Relay disabled 6790 | -6/Garrison | Triggered checkpoint 6929 | -6/Garrison | Crushed by falling debris 6994 | -6/Garrison | Lost 5 parts (1p2n2w) 7039 | -6/Garrison | Triggered checkpoint 7079 | -6/Garrison | Garrison Relay disabled 7112 | -6/Garrison | Rescued a captive Derelict 7123 | -6/Garrison | Rescued a captive Derelict 7284 | -6/Garrison | Build established: Bothacker-Tank 7300 | -6/Garrison | Learned Factory security intel 7361 | -6/Garrison | Garrison Relay disabled 7512 | -6/Garrison | Entered Factory 7512 | -6/Factory | Accompanied by 2 allies 8096 | -6/Factory | Build established: Bothacker-Skirmisher 8242 | -6/Factory | Discovered exit to Factory (range 5) 8262 | -6/Factory | Entered another Factory area 8262 | -5/Factory | Accompanied by 5 allies 8262 | -5/Factory | Evolved 2 slots: Utility x2 8557 | -5/Factory | Build established: Bothacker-Tank 8604 | -5/Factory | Lost 3 allies 8755 | -5/Factory | P-70 Sage assimilated allied Sentinel 6b 8784 | -5/Factory | Lost 3 allies 8786 | -5/Factory | System corruption reached 10% 8830 | -5/Factory | Lost 6 parts (4n2w) 8893 | -5/Factory | Build established: Bothacker-Mutant 9094 | -5/Factory | Cargo convoy interrupted 9278 | -5/Factory | Destroyed 8 combat bots 9450 | -5/Factory | Core integrity fell below 50% 9462 | -5/Factory | First assault squad dispatched 9477 | -5/Factory | Core integrity fell below 20% 9507 | -5/Factory | Lost 13 parts (2p2n4u5w) 9542 | -5/Factory | Discovered new exit (range 6) 9544 | -5/Factory | Entered Extension 9566 | -5/Extension | Identified exit to Cetus 9607 | -5/Extension | Destroyed by S-27 Virus with Autogun Last Messages --------------- ZZ7Y973HWK: Imp. Particle Charger Downloaded coordinate data. 09566_ Connecting with Terminal... >>Alert(Purge) Purged threat record, alert level lowered. >>Access(Branch) Found 1 branch access point: (197,38) Cetus Map updated. >>Trojan(Botnet) Trojan loaded successfully. Testing... Terminal linked with 2 systems. Awaiting botnet instructions. 09572_ CJYBEQTKKVZYAQ6#G5F >Q 09589_ Attempting to rewire R-10 Processor. 09589_ R-10 Processor is broken beyond repair. 09590_ Attempting to rewire R-10 Processor. 09590_ R-10 Processor is broken beyond repair. 09605_ Slug penetrates Wall. Map ----- +----------------------------------------------------+ | | | | | | | | | | | | | | | | | | | ?????????????????????????????????????????????????? | | ?????????????????????????????????????????????????? | | ?????????????????#############???????????????????? | | ????????????????? ???????????????????? | | ???????????????? ??????????????????? | | ################ ??????????????????? | | + ??????????????????? | | # ??????????????????? | | ########+##########???????????????? | | ######??????????? | | ## R usu +??????????? | | + s #???????????? | | ####################s #???????????? | | #??????????????????# #???????????? | | !#??????????????????# #???????????? | | *#??????????????????# h #???????????? | | #??????????????????# @ #???????????? | | ##??????????????????# ????????? | | ????????????????????############ ##??????????? | | ?????????????????????????????????? #???????????? | | ????????????????????????????????????#????????????? | | ?????????????????????????????????????????????????? | | ?????????????????????????????????????????????????? | | ?????????????????????????????????????????????????? | | ?????????????????????????????????????????????????? | | ?????????????????????????????????????????????????? | | ?????????????????????????????????????????????????? | | ?????????????????????????????????????????????????? | | ?????????????????????????????????????????????????? | | ?????????????????????????????????????????????????? | | ?????????????????????????????????????????????????? | | ?????????????????????????????????????????????????? | | ?????????????????????????????????????????????????? | | ?????????????????????????????????????????????????? | | ?????????????????????????????????????????????????? | | ?????????????????????????????????????????????????? | | ?????????????????????????????????????????????????? | | ?????????????????????????????????????????????????? | | ?????????????????????????????????????????????????? | | ?????????????????????????????????????????????????? | | ?????????????????????????????????????????????????? | +----------------------------------------------------+ Best States ------------- Heat Dissipation 78 Energy Generation 33 Energy Capacity 900 Matter Stores 550 Matter Capacity 550 Sight Range 20 Terrain Scan Density 10 Armor Coverage 600 Resistance: KI 40 Evasion (%) 55 Recoil Reduction 4 Offensive Hacking 12 Defensive Hacking 10 Relay Coupler Types 5 Relay Coupler Value 108 Item Schematics ----------------- Minigun | -8/Materials | Scanalyzed Mni. Grenade Launcher | -8/Materials | Scanalyzed Imp. Medium Treads | -6/Factory | Scanalyzed Robot Schematics ------------------ None Fabricated ------------ Nothing Alien Tech Used ----------------- None Achievements -------------- Assimilation Complete Error 47 Factory Defaults Challenges ------------ None Game ------ Seed CommWardroneMinigun Manual? 0 Play Time 03:54:00 Cumulative 59.4 hours Start 2024.06.25 @ 22:59:32 End 2024.06.28 @ 15:47:43 Sessions 5 Manual Loads 0 Difficulty Rogue Special Mode None Game No. 21 Rogue 20 Adventurer 1 Explorer 0 Win Type - Total 0 Types 0/0/0/0/0/0/0/0/0 Lore% 11 Gallery% 36 Achievement% 27 Wizard Run 0 Options --------- Layout 2 ASCII 0 Keyboard 1 Movement Numpad Keybinds 0 Fullscreen 1 Font 24/Terminus Map View 50x44 Zoom Use 0% Tactical HUD 1 Map Filters NONE Filters LOW_CONTRAST(13,24,33) Steam 1 RUN: d2b1efae-0ea9-4233-b6fe-e14383d32fb7